bitfinex-derivatives/quotes_ETHF0:USTF0_20240904
["timestamp","ask_amount","ask_price","bid_price","bid_amount"]
[1725477313658,0.7462,2445.5,2445.3,0.40891]
[1725477313949,1.1551,2445.5,2445.3,0.40891]
[1725477314145,0.3837,2445.5,2445.4,0.40891]
[1725477315248,0.79259,2445.5,2445.3,0.40891]
[1725477318050,0.3837,2445.5,2445.4,0.40891]
[1725477318248,0.3625,2445.7,2445.6,0.40887]
[1725477318745,0.77136,2445.7,2445.6,0.40887]
[1725477319349,0.3625,2445.7,2445.6,0.40887]
[1725477320157,0.77136,2445.7,2445.6,0.40887]
[1725477320450,0.387,2445.9,2445.8,0.40884]
[1725477320846,0.387,2445.9,2445.8,0.96064506]
[1725477321050,0.387,2445.9,2445.8,0.40884]
[1725477321359,4.4705,2446.1,2446.0,0.40881]
[1725477321650,3.5984,2446.3,2446.0,4.63977518]
[1725477321854,3.5984,2446.3,2446.2,0.40877]
[1725477322248,3.2078,2446.3,2446.2,0.40877]
[1725477326353,3.2078,2446.3,2446.2,4.49677]
[1725477326548,3.2078,2446.3,2446.2,5.04849553]
[1725477327753,3.2078,2446.3,2446.2,4.49677]
[1725477327955,3.2078,2446.3,2446.2,5.04849366]
[1725477328152,3.2078,2446.3,2446.2,0.96049366]
[1725477328359,3.2078,2446.3,2446.2,0.40877]
[1725477328555,3.2078,2446.3,2446.2,0.96049265]
[1725477328756,3.2078,2446.3,2446.2,0.40877]
[1725477328959,3.2078,2446.3,2446.2,0.96049788]
[1725477329356,3.2078,2446.3,2446.2,0.40877]
[1725477331761,0.3829,2446.5,2446.1,1.02195]
[1725477331966,0.3829,2446.5,2446.4,0.40874]
[1725477332162,0.3839,2446.6,2446.5,0.40872]
[1725477332379,3.99598,2446.8,2446.7,0.40869]
[1725477332668,4.35248,2446.8,2446.7,0.40869]
[1725477335063,1.14468,2446.8,2446.7,0.40869]
[1725477335760,0.40871,2446.6,2446.5,0.40872]
[1725477336560,0.40872,2446.5,2446.4,0.77903]
[1725477336959,0.40872,2446.5,2446.4,0.77902]
[1725477337164,1.02174,2446.7,2446.4,0.3703]
[1725477337467,0.40872,2446.6,2446.5,0.40872]
[1725477340458,0.40872,2446.6,2446.4,0.3703]
[1725477340673,0.40872,2446.6,2446.4,0.40874]
[1725477340674,3.61653,2446.5,2446.4,0.40874]
[1725477340876,0.40873,2446.5,2446.4,0.40874]
[1725477341566,4.96553,2446.8,2446.1,4.60990484]
[1725477341567,4.96553,2446.8,2446.5,0.40871]
[1725477341768,4.35249,2446.8,2446.7,0.40869]
[1725477343368,1.14469,2446.8,2446.7,0.40869]
[1725477345368,1.14469,2446.8,2446.5,0.374]
[1725477345369,0.40871,2446.6,2446.5,0.374]
[1725477345570,0.40871,2446.6,2446.1,4.23590484]
[1725477345571,1.02178,2446.6,2446.1,4.23590484]
[1725477345873,0.40875,2446.4,2446.3,0.40874]
[1725477346564,0.40876,2446.3,2446.2,0.40876]
[1725477346763,1.16086,2446.3,2446.2,0.40876]
[1725477346965,0.7521,2446.3,2446.2,0.40876]
[1725477347279,1.16086,2446.3,2446.2,0.40876]
[1725477347780,0.7521,2446.3,2446.2,0.40876]
[1725477348871,1.16087,2446.3,2446.1,3.60493484]
[1725477349175,1.16087,2446.3,2446.2,0.40877]
[1725477350078,1.16086,2446.3,2446.2,0.40877]
[1725477350583,0.7521,2446.3,2446.2,0.40877]
[1725477352672,1.16086,2446.3,2446.2,0.40877]
[1725477353477,0.7521,2446.3,2446.2,0.40877]
[1725477354375,1.16086,2446.3,2446.2,0.40877]
[1725477355573,1.16086,2446.3,2446.1,0.00613484]
[1725477355574,1.43071,2446.2,2446.1,0.00613484]
[1725477355776,5.51871,2446.2,2446.1,0.00613484]
[1725477355977,11.90161,2446.2,2446.1,0.00613484]
[1725477356177,4.87967,2446.2,2446.1,0.00613484]
[1725477357784,5.90161,2446.2,2446.1,0.00613484]
[1725477361788,6.92355,2446.2,2446.1,0.00613484]
[1725477361990,6.92355,2446.2,2445.4,1.136]
[1725477361991,10.4709,2446.2,2445.4,1.136]
[1725477362296,1.02219,2445.6,2445.2,0.40892]
[1725477362484,2.83,2445.4,2444.6,7.06038]
[1725477362675,0.40898,2445.0,2444.8,0.409]
[1725477362879,0.00613484,2445.1,2444.7,1.53134484]
[1725477363077,0.00613484,2445.1,2444.8,0.40901]
[1725477363078,0.7317,2444.9,2444.8,0.40901]
[1725477363279,0.7317,2444.9,2444.7,0.73523484]
[1725477363482,1.1407,2444.9,2444.7,0.73523484]
[1725477363687,1.1407,2444.9,2444.7,1.14425484]
[1725477363877,0.7317,2444.9,2444.7,1.14425484]
[1725477364293,0.00613484,2445.1,2444.7,0.73523484]
[1725477364593,0.00613484,2445.1,2445.0,0.40897]
[1725477364789,0.00613484,2445.1,2445.0,3.61677]
[1725477365089,0.00613484,2445.1,2445.0,1.82441]
[1725477365388,0.00613484,2445.1,2445.0,4.89157]
[1725477367386,0.00613484,2445.1,2445.0,5.91401]
[1725477367592,0.00613484,2445.1,2445.0,8.09937]
[1725477368092,0.00613484,2445.1,2445.0,9.12181]
[1725477368795,0.00613484,2445.1,2445.0,15.12181]
[1725477369804,0.00613484,2445.1,2445.0,16.14425]
[1725477369996,0.7483,2445.6,2445.5,0.40889]
[1725477371196,12.09799,2446.1,2445.8,0.40884]
[1725477371197,13.906,2446.1,2445.8,0.40884]
[1725477371499,1.14711,2446.0,2445.8,0.40884]
[1725477371900,1.14711,2446.0,2445.9,0.40882]
[1725477372096,1.14711,2446.0,2445.8,0.40882]
[1725477372496,1.14711,2446.0,2445.9,0.40882]
[1725477372699,0.7383,2446.0,2445.9,0.40882]
[1725477374294,1.14711,2446.0,2445.9,0.40882]
[1725477375602,0.7383,2446.0,2445.9,0.40882]
[1725477378001,1.14711,2446.0,2445.9,0.40882]
[1725477378995,0.7383,2446.0,2445.9,0.40882]
[1725477379494,1.14711,2446.0,2445.9,0.40882]
[1725477379894,0.7383,2446.0,2445.9,0.40882]
[1725477380492,0.4088,2446.1,2446.0,0.40881]
[1725477380697,0.79738,2446.2,2446.1,0.40879]
[1725477380897,4.88538,2446.2,2446.1,0.40879]
[1725477381294,0.40879,2446.1,2445.8,1.3896]
[1725477381500,0.40882,2445.9,2445.8,0.40884]
[1725477381700,3.2078,2446.0,2445.7,0.40885]
[1725477381701,0.40885,2445.8,2445.7,0.40885]
[1725477381906,1.16405,2445.8,2445.7,0.40885]
[1725477382603,0.40888,2445.6,2445.5,0.40888]
[1725477383204,1.77731,2445.8,2445.6,0.40887]
[1725477383205,0.40887,2445.7,2445.6,0.40887]
[1725477383701,0.4089,2445.5,2445.4,0.4089]
[1725477384103,0.40891,2445.4,2445.3,0.77751]
[1725477384406,0.3825,2445.4,2445.3,0.77751]
[1725477385296,3.61667,2445.7,2445.6,0.40887]
[1725477385498,3.61661,2446.0,2445.5,1.02221]
[1725477385699,3.2078,2446.0,2445.9,0.40882]
[1725477386709,3.2078,2446.0,2445.9,1.43088]
[1725477387808,0.78806,2446.3,2446.2,0.40877]
[1725477388605,0.78807,2446.3,2446.2,0.40877]
[1725477389309,3.2078,2446.4,2446.3,0.40876]
[1725477389610,4.5197,2446.7,2446.2,3.2155]
[1725477389803,4.5197,2446.7,2446.2,3.5994]
[1725477390002,0.40871,2446.6,2446.5,0.40871]
[1725477390210,4.5197,2446.7,2446.5,0.40871]
[1725477391614,0.40871,2446.6,2446.5,0.40871]
[1725477391913,4.5197,2446.7,2446.6,0.40871]
[1725477392805,0.40872,2446.5,2446.4,0.40873]
[1725477393112,0.40872,2446.5,2446.2,3.5994]
[1725477393113,0.40872,2446.6,2446.5,0.40872]
[1725477395015,0.40869,2446.7,2446.5,0.40871]
[1725477395809,3.61648,2446.8,2446.6,0.40871]
[1725477396811,0.40871,2446.6,2446.2,3.5994]
[1725477397018,3.2078,2446.4,2446.3,0.40874]
[1725477397312,0.78683,2446.5,2446.4,0.40874]
[1725477397515,0.78683,2446.5,2446.3,0.40874]
[1725477397715,0.76474,2446.4,2446.3,0.40874]
[1725477399015,0.356,2446.4,2446.3,0.40874]
[1725477399517,0.76474,2446.4,2446.3,0.40874]
[1725477399921,0.356,2446.4,2446.3,0.40874]
[1725477400220,0.3781,2446.5,2446.4,0.40874]
[1725477400515,0.4087,2446.7,2446.5,0.40871]
[1725477400719,0.4087,2446.7,2446.2,4.60163]
[1725477400720,0.4087,2446.7,2446.6,0.76461]
[1725477401317,4.39325,2447.0,2446.7,0.40869]
[1725477401620,3.9846,2447.0,2446.9,0.40865]
[1725477402122,2.83,2447.4,2446.8,3.85165]
[1725477402123,3.2078,2447.4,2446.8,3.85165]
[1725477402425,3.61637,2447.4,2447.2,0.4086]
[1725477403109,3.61637,2447.4,2447.1,0.40861]
[1725477403417,0.40859,2447.3,2447.1,0.40861]
[1725477403622,0.4086,2447.3,2447.0,0.40863]
[1725477404516,0.40861,2447.2,2446.8,2.83]
[1725477404714,3.2078,2447.4,2446.8,3.23866]
[1725477404715,0.40863,2447.1,2446.8,3.23866]
[1725477404913,7.05925,2447.4,2446.7,0.7497]
[1725477405320,0.40861,2447.2,2446.9,0.40864]
[1725477405525,7.05925,2447.4,2446.9,0.40864]
[1725477405716,0.40861,2447.2,2446.9,0.40864]
[1725477406018,0.40863,2447.1,2446.8,0.40866]
[1725477406218,3.2078,2447.1,2446.7,0.3749]
[1725477406421,1.16484,2447.0,2446.7,0.78357]
[1725477406723,0.7562,2447.0,2446.8,0.40867]
[1725477407631,0.7562,2447.0,2446.7,0.78358]
[1725477407923,1.16485,2447.0,2446.7,0.78358]
[1725477408718,0.40866,2446.9,2446.7,0.78358]
[1725477409122,1.16485,2447.0,2446.7,0.78358]
[1725477409321,0.40866,2446.9,2446.7,0.78358]
[1725477409813,1.16485,2447.0,2446.7,0.3749]
[1725477410014,0.40866,2446.9,2446.7,0.78358]
[1725477410916,1.16485,2447.0,2446.8,0.40867]
[1725477411116,1.77783,2447.0,2446.6,0.7646]
[1725477411312,0.40868,2446.8,2446.6,0.7646]
[1725477412222,3.61648,2446.8,2446.6,0.7646]
[1725477412523,3.61648,2446.8,2446.6,0.3559]
[1725477412524,0.40869,2446.7,2446.6,0.3559]
[1725477412725,3.2078,2446.8,2446.4,6.0378]
[1725477413022,0.40869,2446.7,2446.5,0.40871]
[1725477413323,0.40871,2446.6,2446.4,3.61652]
[1725477413630,0.40871,2446.6,2446.4,0.40873]
[1725477413631,0.40873,2446.5,2446.4,0.40873]
[1725477413926,0.40873,2446.5,2446.4,0.40874]
[1725477414116,0.3684,2446.5,2446.4,0.40874]
[1725477414519,0.77712,2446.5,2446.4,0.40874]
[1725477414720,0.77712,2446.5,2446.3,0.77474]
[1725477414931,0.3684,2446.5,2446.4,0.40874]
[1725477415219,0.77712,2446.5,2446.3,0.366]
[1725477415426,0.3684,2446.5,2446.4,0.40874]
[1725477417623,0.77712,2446.5,2446.4,0.40874]
[1725477418121,0.3684,2446.5,2446.4,0.40874]
[1725477418328,0.77712,2446.5,2446.4,0.40874]
[1725477418721,0.40874,2446.4,2446.3,0.77475]
[1725477418916,0.77714,2446.5,2446.4,0.40874]
[1725477419929,0.40874,2446.4,2446.3,0.77474]
[1725477420424,0.40874,2446.4,2446.3,0.40875]
[1725477420624,1.39022,2446.5,2446.4,0.40874]
[1725477420625,0.77714,2446.5,2446.4,0.40874]
[1725477420840,0.40874,2446.4,2446.3,0.40874]
[1725477421218,3.61654,2446.4,2446.1,0.78768]
[1725477421521,0.40878,2446.2,2446.1,0.40879]
[1725477421824,0.40879,2446.1,2446.0,0.00613484]
[1725477422026,0.79989,2446.1,2446.0,0.00613484]
[1725477425126,0.3911,2446.1,2446.0,0.41494484]
[1725477425429,0.79989,2446.1,2446.0,0.00613484]
[1725477425821,7.05968,2446.4,2446.3,0.40876]
[1725477425822,3.2078,2446.4,2446.3,0.40876]
[1725477427123,0.7458,2446.5,2446.4,0.40874]
[1725477428120,4.111,2446.7,2446.6,0.40871]
[1725477428327,4.4972,2446.7,2446.6,0.40871]
[1725477428524,8.99309,2446.7,2446.6,0.40871]
[1725477430128,4.4972,2446.7,2446.6,0.40871]
[1725477430333,4.111,2446.7,2446.6,0.40871]
[1725477431721,7.7275,2446.7,2446.5,0.40872]
[1725477431923,7.7275,2446.7,2446.2,3.85192]
[1725477432127,7.7275,2446.7,2446.3,1.05084281]
[1725477432326,3.6165,2446.7,2446.6,0.40871]
[1725477433039,3.2078,2446.7,2446.6,0.40871]
[1725477433839,3.2078,2446.7,2446.1,1.0762]
[1725477433840,6.0378,2446.7,2446.1,1.0762]
[1725477434137,6.44657,2446.3,2446.2,0.40877]
[1725477434330,0.40877,2446.2,2446.1,0.76848]
[1725477434537,3.61657,2446.3,2446.2,0.40877]
[1725477434736,3.2078,2446.3,2446.1,0.76848]
[1725477435034,3.2078,2446.3,2446.0,0.41494484]
[1725477435035,0.40879,2446.1,2446.0,0.41494484]
[1725477435226,0.40879,2446.1,2446.0,0.96672509]
[1725477436234,0.40879,2446.1,2446.0,0.41494484]
[1725477436933,0.40879,2446.1,2446.0,0.00613484]
[1725477437136,0.40878,2446.2,2446.0,0.96672637]
[1725477437447,0.7658,2446.4,2446.1,0.40878]
[1725477437631,0.40878,2446.2,2446.0,0.41492484]
[1725477438027,0.7658,2446.4,2446.1,0.40879]
[1725477438234,0.40876,2446.3,2446.2,0.3852]
[1725477439645,0.40878,2446.2,2446.0,0.41492484]
[1725477440036,0.40879,2446.1,2446.0,0.00613484]
[1725477440839,0.40879,2446.1,2446.0,0.41494484]
[1725477441439,0.40878,2446.2,2446.1,0.40879]
[1725477441734,3.61656,2446.3,2446.1,0.40878]
[1725477441937,0.40877,2446.2,2446.0,0.41492484]
[1725477442144,0.40879,2446.1,2446.0,0.00613484]
[1725477443035,0.40879,2446.1,2446.0,0.41494484]
[1725477443641,0.40878,2446.2,2446.1,0.40879]
[1725477443844,0.40879,2446.1,2446.0,0.41492484]
[1725477444547,0.40878,2446.2,2446.1,0.40879]
[1725477444739,0.40878,2446.2,2446.0,0.41492484]
[1725477445241,0.40879,2446.1,2446.0,0.41492484]
[1725477445638,0.40879,2446.1,2446.0,0.00613484]
[1725477446946,3.23879,2446.1,2446.0,0.00613484]
[1725477447346,3.62989,2446.1,2446.0,0.00613484]
[1725477450355,3.23879,2446.1,2446.0,0.00613484]
[1725477451050,3.2078,2446.3,2446.2,0.40877]
[1725477451664,7.96274,2446.7,2446.5,0.40872]
[1725477451665,0.40871,2446.6,2446.5,0.40872]
[1725477451954,4.35898,2446.8,2446.6,0.40869]
[1725477452357,0.40869,2446.7,2446.6,0.40869]
[1725477452756,0.40869,2446.7,2446.5,0.40871]
[1725477453762,4.35898,2446.8,2446.6,0.4087]
[1725477454357,3.9503,2446.8,2446.7,0.40869]
[1725477454668,3.2078,2446.8,2446.7,0.40869]
[1725477455764,3.61647,2446.8,2446.6,0.40869]
[1725477455960,3.2078,2446.8,2446.2,1.40342]
[1725477456161,3.61648,2446.8,2446.6,0.4087]
[1725477456558,3.2078,2446.8,2446.7,0.79159]
[1725477459661,3.2078,2446.8,2446.7,1.81332]
[1725477459965,3.2078,2446.8,2446.7,2.36499836]
[1725477463062,3.2078,2446.8,2446.7,1.81332]
[1725477467780,1.38573,2447.2,2446.7,1.81332]
[1725477467781,0.40862,2447.2,2446.8,1.02169]
[1725477468082,0.40862,2447.2,2447.1,0.40862]
[1725477468767,3.61639,2447.3,2447.2,0.4086]
[1725477468969,3.2078,2447.3,2447.2,0.4086]
[1725477469566,3.61639,2447.3,2447.2,0.4086]
[1725477470562,3.61639,2447.3,2446.7,3.85172]
[1725477470563,7.2942,2447.3,2446.7,3.85172]
[1725477470769,0.40863,2447.1,2447.0,0.40862]
[1725477472767,0.40863,2447.1,2446.8,0.3732]
[1725477472969,1.02153,2447.2,2446.8,0.3732]
[1725477473172,0.40864,2447.0,2446.9,0.40865]
[1725477474677,3.61644,2447.0,2446.9,0.40865]
[1725477475273,3.2078,2447.0,2446.9,0.40865]
[1725477475877,0.40863,2447.1,2447.0,0.40864]
[1725477477279,0.40861,2447.2,2447.1,0.40861]
[1725477477674,3.6164,2447.3,2447.2,0.4086]
[1725477478179,7.7028,2447.3,2447.2,0.4086]
[1725477478379,7.7028,2447.3,2446.8,1.39488]
[1725477478380,0.40861,2447.2,2447.1,0.40861]
[1725477480679,0.40861,2447.2,2446.9,0.40864]
[1725477480680,0.40864,2447.0,2446.9,0.40864]
[1725477480881,0.40863,2447.1,2446.8,0.3732]
[1725477481086,0.40863,2447.1,2447.0,0.40864]
[1725477481468,1.02157,2447.1,2446.3,2.83]
[1725477481773,0.40867,2446.8,2446.5,0.3746]
[1725477481973,1.02164,2446.9,2446.6,0.40869]
[1725477481974,0.76509,2446.7,2446.6,0.40869]
[1725477482574,0.3564,2446.7,2446.4,0.40873]
[1725477482778,0.3564,2446.7,2446.5,0.40872]
[1725477482779,0.40871,2446.6,2446.5,0.40872]
[1725477485176,0.40871,2446.6,2446.4,0.40873]
[1725477485375,0.40871,2446.6,2446.5,0.40872]
[1725477485578,0.7651,2446.7,2446.5,0.40872]
[1725477486685,0.3564,2446.7,2446.6,0.40871]
[1725477488081,0.76509,2446.7,2446.5,0.40871]
[1725477488287,0.40872,2446.6,2446.2,0.3746]
[1725477488476,3.2078,2446.5,2446.2,0.3746]
[1725477488680,3.2078,2446.5,2446.0,0.36253484]
[1725477488874,0.40874,2446.4,2446.3,0.40874]
[1725477489085,3.2078,2446.5,2446.3,0.40874]
[1725477489382,3.2078,2446.5,2446.2,0.40876]
[1725477489383,0.40874,2446.4,2446.2,0.40876]
[1725477489781,3.61653,2446.5,2446.3,0.40876]
[1725477489977,3.2078,2446.5,2446.4,0.40874]
[1725477491678,3.61652,2446.5,2446.4,0.40874]
[1725477491878,0.40875,2446.4,2446.2,0.40876]
[1725477492385,0.40875,2446.4,2446.1,0.3658]
[1725477492386,0.40875,2446.4,2446.3,0.40876]
[1725477492888,0.40875,2446.4,2446.2,0.40876]
[1725477493883,0.40875,2446.4,2446.3,0.40876]
[1725477494979,3.2078,2446.5,2446.1,0.3658]
[1725477495192,0.40877,2446.2,2446.0,0.41493484]
[1725477495388,1.17439,2446.1,2446.0,0.41493484]
[1725477495692,1.17439,2446.1,2446.0,0.00613484]
[1725477495693,4.38219,2446.1,2446.0,0.00613484]
[1725477496881,5.40417,2446.1,2446.0,0.00613484]
[1725477497491,0.40886,2445.7,2445.1,3.2078]
[1725477497683,0.40889,2445.5,2445.4,0.40891]
[1725477497880,0.40889,2445.5,2445.1,3.9416]
[1725477497881,0.40889,2445.5,2445.3,0.40891]
[1725477499181,1.17631484,2445.6,2445.4,0.40891]
[1725477500493,0.00613484,2445.6,2445.5,0.40889]
[1725477503888,0.00613484,2445.6,2445.5,1.18229]
[1725477505684,0.00613484,2445.6,2445.5,6.29332]
[1725477507700,0.00613484,2445.6,2445.5,1.18229]
[1725477511100,0.00613484,2445.6,2445.5,2.20452]
[1725477511288,0.00613484,2445.6,2445.5,6.29332]
[1725477514498,0.00613484,2445.6,2445.5,7.31555]
[1725477516397,0.00613484,2445.6,2445.5,3.22675]
[1725477517692,0.00613484,2445.6,2445.5,1.82032]
[1725477517897,0.00613484,2445.6,2445.5,0.79809]
[1725477518097,0.39763484,2445.6,2445.5,0.79809]
[1725477518302,0.39763484,2445.6,2445.5,0.40889]
[1725477519200,0.80650484,2445.6,2445.5,0.40889]
[1725477519693,0.40889,2445.5,2445.4,0.40889]
[1725477520001,0.3712,2445.5,2445.4,0.40889]
[1725477520203,0.78009,2445.5,2445.4,0.40889]
[1725477520407,0.3712,2445.5,2445.2,0.00613484]
[1725477520602,3.23892,2445.3,2445.2,0.00613484]
[1725477520795,7.32852,2445.3,2445.2,0.00613484]
[1725477521595,14.35083,2445.3,2445.2,0.00613484]
[1725477521801,14.35083,2445.3,2444.0,1.02283]
[1725477521802,3.23899,2444.9,2444.5,0.40905]
[1725477522098,0.77761,2444.8,2444.4,0.77756]
[1725477522404,0.3686,2444.8,2444.5,0.40905]
[1725477522602,0.3677,2444.7,2444.5,0.40905]
[1725477523510,0.3677,2444.7,2444.6,0.40904]
[1725477527913,3.5755,2444.7,2444.6,0.40904]
[1725477528308,0.3677,2444.7,2444.6,0.40904]
[1725477528816,0.7282,2444.7,2444.6,0.40904]
[1725477529310,0.3677,2444.7,2444.6,0.40904]
[1725477532711,0.3686,2444.8,2444.7,0.40902]
[1725477532904,3.9248,2445.0,2444.9,0.40899]
[1725477533511,6.7548,2445.0,2444.9,0.40899]
[1725477537811,3.9248,2445.0,2444.9,0.40899]
[1725477540328,4.33377,2445.0,2444.9,0.40899]
[1725477540704,6.7548,2445.0,2444.4,0.00613484]
[1725477540910,6.7548,2445.0,2444.6,0.40903]
[1725477540911,0.40904,2444.7,2444.6,0.40903]
[1725477542015,1.58904,2444.7,2444.6,0.40903]
[1725477545213,3.9248,2445.0,2444.9,0.40899]
[1725477545419,5.1048,2445.0,2444.9,0.40899]
[1725477546018,5.51377,2445.0,2444.9,0.40899]
[1725477546319,5.51377,2445.0,2444.8,0.7279]
[1725477546320,6.12724,2445.0,2444.7,0.40901]
[1725477546524,0.40901,2444.8,2444.7,0.40901]
[1725477547025,0.76521,2444.8,2444.7,0.40901]
[1725477548112,1.589,2444.9,2444.8,0.40901]
[1725477554327,5.1048,2445.0,2444.9,0.40899]
[1725477554627,4.3878,2445.0,2444.9,1.43147]
[1725477554811,4.3878,2445.0,2444.9,2.15667]
[1725477554812,1.18,2445.0,2444.9,2.15667]
[1725477556122,1.18,2445.0,2444.9,1.13419]
[1725477557423,5.2704,2445.0,2444.4,1.40948484]
[1725477557614,1.5659,2444.9,2444.8,0.40899]
[1725477558425,4.3878,2445.1,2445.0,0.40897]
[1725477558714,5.18266,2445.1,2445.0,0.40897]
[1725477559828,1.97486,2445.1,2445.0,0.40897]
[1725477565329,1.97486,2445.1,2445.0,0.96092868]
[1725477565625,1.97486,2445.1,2445.0,0.40897]
[1725477565829,1.97486,2445.1,2445.0,0.96093466]
[1725477566517,1.97486,2445.1,2445.0,1.46026518]
[1725477567125,4.01966,2445.1,2445.0,0.55196466]
[1725477567327,0.40904,2444.6,2444.5,0.76355]
[1725477567520,0.40904,2444.6,2444.5,2.63084136]
[1725477568531,0.40904,2444.6,2444.5,0.76355]
[1725477568732,0.40904,2444.6,2444.5,1.31557637]
[1725477569029,0.40904,2444.6,2444.5,2.13146574]
[1725477569330,2.35943,2444.7,2444.6,0.40904]
[1725477569517,1.18,2444.9,2444.8,0.40899]
[1725477569722,1.589,2444.9,2444.8,0.40899]
[1725477570118,1.18,2444.9,2444.8,1.46032892]
[1725477570323,1.58899,2444.9,2444.8,1.46032892]
[1725477570520,1.18,2444.9,2444.8,1.46033196]
[1725477570933,1.58899,2444.9,2444.8,1.46033196]
[1725477571533,1.18,2444.9,2444.8,1.46033196]
[1725477573328,1.18,2444.9,2444.8,2.27616428]
[1725477573630,1.18,2444.9,2444.8,3.29868428]
[1725477573832,1.18,2444.9,2444.8,1.43151]
[1725477574023,4.3878,2445.1,2445.0,0.40897]
[1725477574233,4.3878,2445.1,2445.0,0.9609496]
[1725477575240,4.3878,2445.1,2445.0,1.460294]
[1725477575538,3.2078,2445.1,2445.0,1.460294]
[1725477575727,3.2078,2445.1,2445.0,3.237934]
[1725477576027,3.2078,2445.1,2445.0,3.03127722]
[1725477577139,3.2078,2445.1,2445.0,2.6859544]
[1725477577330,3.2078,2445.1,2445.0,2.53188955]
[1725477577731,3.2078,2445.1,2445.0,3.03121101]
[1725477578537,3.2078,2445.1,2445.0,4.05365101]
[1725477580127,1.18,2445.2,2445.1,0.40896]
[1725477580338,4.79674,2445.2,2445.1,1.05127236]
[1725477580542,0.40896,2445.1,2445.0,0.40896]
[1725477580741,1.95356,2445.1,2445.0,0.40896]
[1725477581038,1.95356,2445.1,2445.0,0.96093121]
[1725477581233,2.34306,2445.1,2445.0,0.96093121]
[1725477581739,2.34306,2445.1,2445.0,1.46026892]
[1725477584134,2.34306,2445.1,2445.0,1.46026885]
[1725477584740,2.34306,2445.1,2445.0,1.05130885]
[1725477585835,7.45506,2445.1,2445.0,1.05130885]
[1725477586037,7.45506,2445.1,2444.5,0.40905]
[1725477586038,0.40904,2444.6,2444.5,0.40905]
[1725477586241,0.40904,2444.6,2444.5,1.22478717]
[1725477586739,0.77274,2444.6,2444.5,1.22478717]
[1725477587344,0.77274,2444.6,2444.5,1.22479898]
[1725477587940,0.3637,2444.6,2444.5,1.22479898]
[1725477589652,1.18,2444.7,2444.6,0.40904]
[1725477589851,1.18,2444.7,2444.6,1.22478898]
[1725477590352,1.18,2444.8,2444.7,0.40902]
[1725477590648,4.111,2445.0,2444.9,0.40899]
[1725477590848,5.291,2445.0,2444.9,0.40899]
[1725477591047,5.69997,2445.0,2444.9,0.40899]
[1725477592948,5.69997,2445.0,2444.8,1.15239]
[1725477592949,0.40899,2444.9,2444.8,1.15239]
[1725477593145,0.40899,2444.9,2444.8,0.40899]
[1725477593650,0.40902,2444.7,2444.6,0.40904]
[1725477593846,3.61682,2444.7,2444.6,1.22480127]
[1725477594063,3.61682,2444.7,2444.6,0.81576127]
[1725477594243,4.99938,2444.7,2444.6,0.81576127]
[1725477594551,4.99938,2444.7,2444.4,0.00613484]
[1725477594552,0.40906,2444.5,2444.4,0.00613484]
[1725477594853,1.58906,2444.5,2444.4,0.8219278]
[1725477595049,6.70291,2444.5,2444.4,0.00613484]
[1725477597359,5.68026,2444.5,2444.4,0.00613484]
[1725477597953,5.68026,2444.5,2444.4,0.41520484]
[1725477597954,7.33026,2444.5,2444.4,0.41520484]
[1725477598459,7.33026,2444.5,2444.4,0.00613484]
[1725477601457,8.35291,2444.5,2444.4,0.00613484]
[1725477603061,7.33026,2444.5,2444.4,0.00613484]
[1725477603758,7.33026,2444.5,2444.4,0.41520484]
[1725477603759,2.83,2444.5,2444.4,0.41520484]
[1725477603949,2.83,2444.6,2444.5,0.40906]
[1725477604157,2.83,2444.6,2444.5,1.16456]
[1725477604464,2.83,2444.8,2444.7,0.40902]
[1725477604660,6.941,2445.0,2444.9,0.40899]
[1725477607965,2.83,2445.0,2444.9,0.40899]
[1725477608463,3.23897,2445.0,2444.8,0.40899]
[1725477608666,0.40902,2444.8,2444.5,4.3414]
[1725477608863,0.40902,2444.8,2444.6,0.40903]
[1725477609155,0.40902,2444.8,2444.5,1.15984]
[1725477609156,6.44683,2444.7,2444.5,1.15984]
[1725477609359,6.44683,2444.7,2444.6,0.40904]
[1725477609555,6.0378,2444.7,2444.6,0.40904]
[1725477609952,0.40901,2444.8,2444.7,0.40902]
[1725477610352,2.83,2444.9,2444.5,0.7508]
[1725477610555,2.83,2444.9,2444.8,0.40901]
[1725477613266,0.40901,2444.8,2444.7,0.78702]
[1725477613452,0.79872,2444.8,2444.6,0.40903]
[1725477614158,3.61682,2444.7,2444.6,0.40903]
[1725477614358,6.44682,2444.7,2444.5,0.7508]
[1725477614665,6.44682,2444.7,2444.5,1.15984]
[1725477614859,2.83,2444.7,2444.6,0.40904]
[1725477615966,3.23902,2444.7,2444.6,0.40904]
[1725477616363,2.83,2444.7,2444.6,0.40904]
[1725477617058,3.23902,2444.7,2444.6,0.40904]
[1725477617665,2.83,2444.7,2444.6,0.40904]
[1725477618369,0.79872,2444.8,2444.7,0.40902]
[1725477618769,3.2078,2445.0,2444.6,1.0226]
[1725477618964,3.2078,2445.0,2444.9,0.40899]
[1725477619870,3.2078,2445.0,2444.9,1.16669]
[1725477622775,3.2078,2445.0,2444.9,2.18917]
[1725477623271,3.23893,2445.3,2445.2,0.40894]
[1725477623475,3.2078,2445.5,2445.4,0.40891]
[1725477623767,4.52602484,2445.6,2445.5,0.40889]
[1725477623768,0.00613484,2445.6,2445.5,0.40889]
[1725477623971,3.24501484,2445.6,2445.4,0.40889]
[1725477624162,3.24502484,2445.6,2445.4,0.40889]
[1725477624364,3.24502484,2445.6,2445.4,0.77849]
[1725477624564,0.40889,2445.5,2445.4,0.3696]